[Event "Championnat de France Universitaire 2022"]
[Site "Limoges, France"]
[Date "2022.02.06"]
[Round "7.4"]
[White "Gault, Emmanuel"]
[Black "Bouslimi, Nabil"]
[Result "1/2-1/2"]
[TimeControl "15'+5''"]
[WhiteElo "2041"]
[BlackElo "2052"]

1. c4 {[%clk 00:15:08]} {[%emt 00:00:01]} e5 {[%clk 00:15:08]} {[%emt
00:00:04]} 2. Nc3 {[%clk 00:15:11]} Nf6 {[%clk 00:15:11]} {[%emt 00:00:02]} 3.
g3 {[%clk 00:15:14]} {[%emt 00:00:02]} Be7 {[%clk 00:14:38]} {[%emt 00:00:38]}
4. Bg2 {[%clk 00:15:17]} {[%emt 00:00:02]} c6 {[%clk 00:14:41]} {[%emt
00:00:03]} 5. d4 {[%clk 00:15:08]} {[%emt 00:00:13]} d6 {[%clk 00:14:17]}
{[%emt 00:00:31]} 6. e3 {[%clk 00:14:55]} {[%emt 00:00:17]} O-O {[%clk
00:14:13]} {[%emt 00:00:09]} 7. Nge2 {[%clk 00:14:56]} {[%emt 00:00:03]} Be6
{[%clk 00:13:15]} {[%emt 00:01:04]} 8. b3 {[%clk 00:14:59]} {[%emt 00:00:02]}
Qc8 {[%clk 00:12:35]} {[%emt 00:00:45]} 9. O-O {[%clk 00:14:15]} {[%emt
00:00:48]} Bh3 {[%clk 00:12:33]} {[%emt 00:00:08]} 10. Bb2 {[%clk 00:14:08]}
{[%emt 00:00:12]} Bxg2 {[%clk 00:12:24]} {[%emt 00:00:15]} 11. Kxg2 {[%clk
00:14:11]} {[%emt 00:00:02]} Rd8 {[%clk 00:12:24]} {[%emt 00:00:06]} 12. Qc2
{[%clk 00:14:03]} {[%emt 00:00:12]} Nbd7 {[%clk 00:12:06]} {[%emt 00:00:24]} 13.
Rad1 {[%clk 00:13:46]} {[%emt 00:00:22]} b5 {[%clk 00:11:32]} {[%emt 00:00:39]}
14. cxb5 {[%clk 00:13:30]} {[%emt 00:00:21]} cxb5 {[%clk 00:11:36]} {[%emt
00:00:02]} 15. Qd3 {[%clk 00:13:31]} {[%emt 00:00:03]} b4 {[%clk 00:11:38]}
{[%emt 00:00:04]} 16. Ne4 {[%clk 00:13:05]} {[%emt 00:00:30]} Qb7 {[%clk
00:11:32]} {[%emt 00:00:11]} 17. f3 {[%clk 00:12:54]} {[%emt 00:00:16]} Nxe4
{[%clk 00:10:31]} {[%emt 00:01:06]} 18. Qxe4 {[%clk 00:12:28]} {[%emt
00:00:30]} Qxe4 {[%clk 00:09:47]} {[%emt 00:00:50]} 19. fxe4 {[%clk 00:12:30]}
{[%emt 00:00:03]} Rac8 {[%clk 00:09:31]} {[%emt 00:00:22]} 20. Rc1 {[%clk
00:12:16]} {[%emt 00:00:19]} Nf6 {[%clk 00:09:33]} {[%emt 00:00:02]} 21. Kf3
{[%clk 00:11:42]} {[%emt 00:00:39]} d5 {[%clk 00:08:46]} {[%emt 00:00:53]} 22.
dxe5 {[%clk 00:09:41]} {[%emt 00:02:06]} dxe4+ {[%clk 00:07:24]} {[%emt
00:01:27]} 23. Kf4 {[%clk 00:09:41]} {[%emt 00:00:04]} Nd7 {[%clk 00:04:49]}
{[%emt 00:02:40]} 24. Bd4 {[%clk 00:08:37]} {[%emt 00:01:10]} f6 {[%clk
00:03:13]} {[%emt 00:01:42]} 25. exf6 {[%clk 00:04:59]} {[%emt 00:03:42]} Bxf6
{[%clk 00:02:39]} {[%emt 00:00:39]} 26. Kxe4 {[%clk 00:04:51]} {[%emt
00:00:13]} Re8+ {[%clk 00:01:35]} {[%emt 00:01:10]} 27. Kd3 {[%clk 00:04:39]}
{[%emt 00:00:16]} Rcd8 {[%clk 00:01:29]} {[%emt 00:00:12]} 28. Rc7 {[%clk
00:03:44]} {[%emt 00:01:00]} a5 {[%clk 00:01:00]} {[%emt 00:00:34]} 29. Kc2
{[%clk 00:02:35]} {[%emt 00:01:14]} Bxd4 {[%clk 00:00:24]} {[%emt 00:00:41]} 30.
Nxd4 {[%clk 00:02:38]} {[%emt 00:00:01]} Rxe3 {[%clk 00:00:25]} {[%emt
00:00:04]} 31. Nc6 {[%clk 00:02:28]} {[%emt 00:00:14]} Rc3+ {[%clk 00:00:28]}
{[%emt 00:00:02]} 32. Kb1 {[%clk 00:02:19]} {[%emt 00:00:15]} Nf6 {[%clk
00:00:19]} {[%emt 00:00:14]} 33. Rxg7+ {[%clk 00:01:35]} {[%emt 00:00:49]} Kxg7
{[%clk 00:00:23]} {[%emt 00:00:01]} 34. Nxd8 {[%clk 00:01:39]} {[%emt
00:00:01]} Ng4 {[%clk 00:00:18]} {[%emt 00:00:10]} 35. Ne6+ {[%clk 00:01:38]}
{[%emt 00:00:05]} Kg6 {[%clk 00:00:13]} {[%emt 00:00:11]} 36. Nf4+ {[%clk
00:01:25]} {[%emt 00:00:18]} Kg5 {[%clk 00:00:14]} {[%emt 00:00:04]} 37. h4+
{[%clk 00:01:25]} {[%emt 00:00:05]} Kh6 {[%clk 00:00:13]} {[%emt 00:00:06]} 38.
Ne2 {[%clk 00:01:00]} {[%emt 00:00:29]} Re3 {[%clk 00:00:13]} {[%emt 00:00:06]}
39. Rf4 {[%clk 00:00:39]} {[%emt 00:00:26]} Ne5 {[%clk 00:00:10]} {[%emt
00:00:10]} 40. Nd4 {[%clk 00:00:33]} {[%emt 00:00:10]} Re1+ {[%clk 00:00:07]}
{[%emt 00:00:08]} 41. Kc2 {[%clk 00:00:34]} {[%emt 00:00:03]} Rg1 {[%clk
00:00:07]} {[%emt 00:00:05]} 42. Re4 {[%clk 00:00:17]} {[%emt 00:00:22]} Ng6
{[%clk 00:00:07]} {[%emt 00:00:06]} 43. Nf5+ {[%clk 00:00:12]} {[%emt
00:00:09]} Kh5 {[%clk 00:00:09]} {[%emt 00:00:03]} 44. Ng7+ {[%clk 00:00:11]}
{[%emt 00:00:05]} Kh6 {[%clk 00:00:13]} {[%emt 00:00:02]} 45. Nf5+ {[%clk
00:00:14]} {[%emt 00:00:02]} Kh5 {[%clk 00:00:18]} 46. Ng7+ {[%clk 00:00:14]}
{[%emt 00:00:17]} Kh6 {[%clk 00:00:30]} 47. Nf5+ {[%clk 00:00:18]} {[%emt
00:00:02]} 1/2-1/2

[Event "Championnat de France Universitaire 2022"]
[Site "Limoges, France"]
[Date "2022.02.06"]
[Round "7.1"]
[White "Rakotomaharo, Fy Antenaina"]
[Black "Defromont, Benjamin"]
[Result "1-0"]
[TimeControl "15'+5''"]
[WhiteElo "2474"]
[BlackElo "2263"]

1. e4 {[%clk 00:15:06]} {[%emt 00:00:02]} e5 {[%clk 00:15:05]} {[%emt
00:00:06]} 2. Nf3 {[%clk 00:15:09]} {[%emt 00:00:02]} Nc6 {[%clk 00:15:08]}
{[%emt 00:00:02]} 3. Bb5 {[%clk 00:15:12]} {[%emt 00:00:02]} a6 {[%clk
00:15:12]} {[%emt 00:00:01]} 4. Ba4 {[%clk 00:15:15]} {[%emt 00:00:02]} Nf6
{[%clk 00:15:15]} {[%emt 00:00:02]} 5. d3 {[%clk 00:15:17]} {[%emt 00:00:03]}
d6 {[%clk 00:14:08]} {[%emt 00:01:13]} 6. c3 {[%clk 00:15:20]} {[%emt
00:00:02]} g6 {[%clk 00:13:42]} {[%emt 00:00:30]} 7. O-O {[%clk 00:15:22]}
{[%emt 00:00:03]} Bg7 {[%clk 00:13:46]} {[%emt 00:00:02]} 8. Re1 {[%clk
00:15:25]} {[%emt 00:00:02]} O-O {[%clk 00:13:35]} {[%emt 00:00:16]} 9. Nbd2
{[%clk 00:15:28]} {[%emt 00:00:02]} b5 {[%clk 00:11:07]} {[%emt 00:02:34]} 10.
Bc2 {[%clk 00:15:30]} {[%emt 00:00:03]} Bb7 {[%clk 00:10:45]} {[%emt 00:00:27]}
11. a4 {[%clk 00:14:47]} {[%emt 00:00:47]} b4 {[%clk 00:09:46]} {[%emt
00:01:05]} 12. a5 {[%clk 00:14:38]} {[%emt 00:00:14]} Re8 {[%clk 00:08:46]}
{[%emt 00:01:04]} 13. Bb3 {[%clk 00:11:59]} {[%emt 00:02:44]} h6 {[%clk
00:08:31]} {[%emt 00:00:19]} 14. cxb4 {[%clk 00:11:07]} {[%emt 00:00:57]} Nxb4
{[%clk 00:08:19]} {[%emt 00:00:18]} 15. Bxf7+ {[%clk 00:11:05]} {[%emt
00:00:06]} Kxf7 {[%clk 00:08:22]} {[%emt 00:00:02]} 16. Qb3+ {[%clk 00:11:08]}
{[%emt 00:00:02]} Ke7 {[%clk 00:06:18]} {[%emt 00:02:10]} 17. Qxb4 {[%clk
00:10:36]} {[%emt 00:00:37]} Rb8 {[%clk 00:06:19]} {[%emt 00:00:04]} 18. Nxe5
{[%clk 00:10:10]} {[%emt 00:00:31]} Ba8 {[%clk 00:04:25]} {[%emt 00:02:00]} 19.
Qa3 {[%clk 00:10:11]} {[%emt 00:00:03]} g5 {[%clk 00:04:28]} {[%emt 00:00:01]}
20. Nf1 {[%clk 00:08:21]} {[%emt 00:01:54]} Kf8 {[%clk 00:03:48]} {[%emt
00:00:46]} 21. Nf3 {[%clk 00:08:23]} {[%emt 00:00:02]} Bc6 {[%clk 00:03:23]}
{[%emt 00:00:31]} 22. Ng3 {[%clk 00:08:13]} {[%emt 00:00:15]} Bd7 {[%clk
00:03:26]} {[%emt 00:00:02]} 23. e5 {[%clk 00:07:44]} {[%emt 00:00:34]} Ng4
{[%clk 00:02:58]} {[%emt 00:00:33]} 24. d4 {[%clk 00:07:33]} {[%emt 00:00:16]}
Bc6 {[%clk 00:02:25]} {[%emt 00:00:38]} 25. h3 {[%clk 00:07:35]} {[%emt
00:00:02]} Bxf3 {[%clk 00:02:28]} {[%emt 00:00:02]} 26. Qxf3+ {[%clk 00:07:38]}
{[%emt 00:00:01]} Nf6 {[%clk 00:02:31]} {[%emt 00:00:02]} 27. Re3 {[%clk
00:06:10]} {[%emt 00:01:33]} g4 {[%clk 00:02:22]} {[%emt 00:00:15]} 28. hxg4
{[%clk 00:06:03]} {[%emt 00:00:13]} dxe5 {[%clk 00:02:25]} {[%emt 00:00:02]} 29.
dxe5 {[%clk 00:06:03]} {[%emt 00:00:04]} 1-0

[ePGN "0.1;DGT LiveChess/2.2.5"]

[Event "Championnat de France Universitaire 2022"]
[Site "Limoges, France"]
[Date "2022.02.06"]
[Round "8.3"]
[White "Defromont, Benjamin"]
[Black "Bosc, Gabriel"]
[Result "0-1"]
[TimeControl "15'+5''"]
[WhiteElo "2263"]
[BlackElo "2050"]

1. e4 {[%clk 00:15:07]} {[%emt 00:00:02]} e6 {[%clk 00:15:06]} {[%emt
00:00:04]} 2. d4 {[%clk 00:15:04]} {[%emt 00:00:09]} d5 {[%clk 00:15:08]}
{[%emt 00:00:02]} 3. Nc3 {[%clk 00:15:08]} {[%emt 00:00:01]} dxe4 {[%clk
00:15:09]} {[%emt 00:00:05]} 4. Nxe4 {[%clk 00:15:11]} {[%emt 00:00:02]} Nf6
{[%clk 00:15:11]} {[%emt 00:00:04]} 5. Nxf6+ {[%clk 00:14:51]} {[%emt
00:00:24]} gxf6 {[%clk 00:15:15]} {[%emt 00:00:02]} 6. Nf3 {[%clk 00:13:42]}
{[%emt 00:01:12]} Nc6 {[%clk 00:15:17]} {[%emt 00:00:03]} 7. Be3 {[%clk
00:13:02]} {[%emt 00:00:45]} b6 {[%clk 00:13:01]} {[%emt 00:02:22]} 8. g3
{[%clk 00:09:40]} {[%emt 00:03:27]} Bb7 {[%clk 00:12:29]} {[%emt 00:00:38]} 9.
Bg2 {[%clk 00:09:42]} {[%emt 00:00:02]} Qd7 {[%clk 00:12:16]} {[%emt 00:00:17]}
10. O-O {[%clk 00:09:42]} {[%emt 00:00:05]} O-O-O {[%clk 00:11:16]} {[%emt
00:01:06]} 11. c4 {[%clk 00:09:45]} {[%emt 00:00:02]} h5 {[%clk 00:10:34]}
{[%emt 00:00:46]} 12. Qe2 {[%clk 00:08:09]} {[%emt 00:01:42]} Ne7 {[%clk
00:08:59]} {[%emt 00:01:40]} 13. b4 {[%clk 00:05:53]} {[%emt 00:02:21]} Nf5
{[%clk 00:08:51]} {[%emt 00:00:13]} 14. b5 {[%clk 00:05:57]} {[%emt 00:00:01]}
h4 {[%clk 00:08:40]} {[%emt 00:00:17]} 15. a4 {[%clk 00:05:33]} {[%emt
00:00:29]} hxg3 {[%clk 00:08:30]} {[%emt 00:00:15]} 16. hxg3 {[%clk 00:05:23]}
{[%emt 00:00:14]} Bh6 {[%clk 00:06:56]} {[%emt 00:01:39]} 17. Bxh6 {[%clk
00:04:54]} {[%emt 00:00:33]} Rxh6 {[%clk 00:07:00]} 18. Rfd1 {[%clk 00:03:41]}
{[%emt 00:01:18]} Rdh8 {[%clk 00:06:41]} {[%emt 00:00:24]} 19. Qd2 {[%clk
00:01:19]} {[%emt 00:02:27]} Kb8 {[%clk 00:02:11]} {[%emt 00:04:35]} 20. a5
{[%clk 00:01:22]} {[%emt 00:00:02]} Nd6 {[%clk 00:01:09]} {[%emt 00:01:06]} 21.
Qe2 {[%clk 00:00:58]} {[%emt 00:00:29]} Nf5 {[%clk 00:00:54]} {[%emt 00:00:21]}
22. Qd2 {[%clk 00:00:35]} {[%emt 00:00:28]} Nd6 {[%clk 00:00:58]} 23. Qc1
{[%clk 00:00:22]} {[%emt 00:00:18]} Ne4 {[%clk 00:00:32]} {[%emt 00:00:31]} 24.
axb6 {[%clk 00:00:18]} {[%emt 00:00:09]} cxb6 {[%clk 00:00:29]} {[%emt
00:00:08]} 25. c5 {[%clk 00:00:16]} {[%emt 00:00:06]} Qxb5 {[%clk 00:00:21]}
{[%emt 00:00:14]} 26. Rb1 {[%clk 00:00:14]} {[%emt 00:00:07]} Qe2 {[%clk
00:00:10]} {[%emt 00:00:16]} 27. Rb2 {[%clk 00:00:13]} {[%emt 00:00:06]} Rh1+
{[%clk 00:00:09]} {[%emt 00:00:05]} 28. Bxh1 {[%clk 00:00:17]} {[%emt
00:00:01]} Rxh1+ {[%clk 00:00:13]} 29. Kxh1 {[%clk 00:00:21]} Qxf3+ {[%clk
00:00:17]} {[%emt 00:00:01]} 30. Kg1 {[%clk 00:00:22]} {[%emt 00:00:04]} Nc3
{[%clk 00:00:17]} {[%emt 00:00:06]} 31. c6 {[%clk 00:00:19]} {[%emt 00:00:08]}
Bxc6 {[%clk 00:00:14]} {[%emt 00:00:08]} 32. d5 {[%clk 00:00:23]} Nxd1 {[%clk
00:00:08]} {[%emt 00:00:11]} 33. Qxc6 {[%clk 00:00:11]} {[%emt 00:00:16]} Nxb2
{[%clk 00:00:10]} {[%emt 00:00:04]} 34. Qd6+ {[%clk 00:00:08]} {[%emt
00:00:09]} Kc8 {[%clk 00:00:11]} {[%emt 00:00:04]} 35. Qf8+ {[%clk 00:00:06]}
{[%emt 00:00:07]} Kb7 {[%clk 00:00:10]} {[%emt 00:00:05]} 36. Qxf7+ {[%clk
00:00:08]} {[%emt 00:00:03]} Ka6 {[%clk 00:00:14]} 37. Qxe6 {[%clk 00:00:10]}
{[%emt 00:00:04]} Nd3 {[%clk 00:00:12]} {[%emt 00:00:08]} 38. Qc8+ {[%clk
00:00:12]} {[%emt 00:00:03]} Kb5 {[%clk 00:00:09]} {[%emt 00:00:08]} 39. Qc6+
{[%clk 00:00:10]} {[%emt 00:00:07]} Kb4 {[%clk 00:00:08]} {[%emt 00:00:06]} 40.
Qd6+ {[%clk 00:00:11]} {[%emt 00:00:04]} Kb3 {[%clk 00:00:12]} {[%emt
00:00:02]} 41. Qe6 {[%clk 00:00:00]} {[%emt 00:00:10]} Qxf2+ {[%clk 00:00:15]}
{[%emt 00:00:02]} 42. Kh1 {[%clk 00:00:00]} 0-1

[Event "Championnat de France Universitaire 2022"]
[Site "Limoges, France"]
[Date "2022.02.06"]
[Round "8.1"]
[White "Rakotomaharo, Fy Antenaina"]
[Black "Gatineau, Yovann"]
[Result "1-0"]
[TimeControl "15'+5''"]
[WhiteElo "2474"]
[BlackElo "2384"]

1. e4 {[%clk 00:15:08]} {[%emt 00:00:02]} e5 {[%clk 00:15:10]} 2. Nf3 {[%clk
00:15:11]} {[%emt 00:00:02]} Nc6 {[%clk 00:15:14]} {[%emt 00:00:02]} 3. Bb5
{[%clk 00:15:14]} a6 {[%clk 00:15:19]} 4. Ba4 {[%clk 00:15:18]} {[%emt
00:00:02]} Nf6 {[%clk 00:15:23]} 5. d3 {[%clk 00:15:21]} {[%emt 00:00:04]} b5
{[%clk 00:15:26]} 6. Bb3 {[%emt 00:00:01]} Bc5 {[%emt 00:00:01]} 7. O-O {[%clk
00:15:11]} {[%emt 00:00:17]} O-O {[%clk 00:15:19]} {[%emt 00:00:17]} 8. c3
{[%clk 00:14:32]} {[%emt 00:00:44]} d6 {[%clk 00:15:15]} {[%emt 00:00:09]} 9.
h3 {[%clk 00:14:34]} {[%emt 00:00:04]} Rb8 {[%clk 00:14:18]} {[%emt 00:01:02]}
10. Re1 {[%clk 00:14:33]} {[%emt 00:00:05]} Bb7 {[%clk 00:14:03]} {[%emt
00:00:20]} 11. Nbd2 {[%clk 00:14:35]} {[%emt 00:00:03]} d5 {[%clk 00:12:38]}
{[%emt 00:01:30]} 12. exd5 {[%clk 00:13:15]} {[%emt 00:01:24]} Nxd5 {[%clk
00:12:41]} {[%emt 00:00:03]} 13. Ne4 {[%clk 00:10:27]} {[%emt 00:02:53]} Be7
{[%clk 00:11:02]} {[%emt 00:01:46]} 14. Ng3 {[%clk 00:10:28]} {[%emt 00:00:03]}
Nf4 {[%clk 00:10:16]} {[%emt 00:00:51]} 15. d4 {[%clk 00:10:04]} {[%emt
00:00:29]} Re8 {[%clk 00:06:41]} {[%emt 00:03:40]} 16. Nxe5 {[%clk 00:08:54]}
{[%emt 00:01:15]} Nxe5 {[%clk 00:06:26]} {[%emt 00:00:20]} 17. Bxf4 {[%clk
00:08:57]} {[%emt 00:00:02]} Nc4 {[%clk 00:05:59]} {[%emt 00:00:33]} 18. Qg4
{[%clk 00:07:50]} {[%emt 00:01:11]} Bf8 {[%clk 00:04:15]} {[%emt 00:01:50]} 19.
Nh5 {[%clk 00:06:49]} {[%emt 00:01:06]} Kh8 {[%clk 00:04:00]} {[%emt 00:00:20]}
20. Rxe8 {[%clk 00:06:17]} {[%emt 00:00:37]} Qxe8 {[%clk 00:04:04]} {[%emt
00:00:02]} 21. Bxc4 {[%clk 00:06:21]} {[%emt 00:00:01]} bxc4 {[%clk 00:04:05]}
{[%emt 00:00:03]} 22. Be5 {[%clk 00:06:24]} {[%emt 00:00:01]} f6 {[%clk
00:03:12]} {[%emt 00:00:59]} 23. Nxf6 {[%clk 00:06:23]} {[%emt 00:00:05]} Qc8
{[%clk 00:02:00]} {[%emt 00:01:16]} 24. Nd7 {[%clk 00:05:11]} {[%emt 00:01:18]}
Ra8 {[%clk 00:01:21]} {[%emt 00:00:45]} 25. b3 {[%clk 00:04:35]} {[%emt
00:00:41]} Bd5 {[%clk 00:00:52]} {[%emt 00:00:34]} 26. bxc4 {[%clk 00:04:08]}
{[%emt 00:00:32]} Bxc4 {[%clk 00:00:55]} {[%emt 00:00:01]} 27. Re1 {[%clk
00:03:43]} {[%emt 00:00:29]} Bb5 {[%clk 00:00:30]} {[%emt 00:00:30]} 28. Nxf8
{[%clk 00:03:45]} {[%emt 00:00:03]} Qxg4 {[%clk 00:00:17]} {[%emt 00:00:18]} 29.
hxg4 {[%clk 00:03:48]} {[%emt 00:00:02]} Rxf8 {[%clk 00:00:21]} {[%emt
00:00:01]} 30. Bxc7 {[%clk 00:03:44]} {[%emt 00:00:09]} Rc8 {[%clk 00:00:26]}
31. Ba5 {[%clk 00:03:48]} {[%emt 00:00:02]} Bc4 {[%clk 00:00:30]} {[%emt
00:00:01]} 32. a3 {[%clk 00:03:45]} {[%emt 00:00:07]} Kg8 {[%clk 00:00:31]}
{[%emt 00:00:04]} 33. Re7 {[%clk 00:03:43]} {[%emt 00:00:07]} Rc6 {[%clk
00:00:28]} {[%emt 00:00:08]} 34. f3 {[%clk 00:03:29]} {[%emt 00:00:20]} h6
{[%clk 00:00:19]} {[%emt 00:00:14]} 35. Ra7 {[%clk 00:03:28]} {[%emt 00:00:06]}
Kh7 {[%clk 00:00:20]} {[%emt 00:00:04]} 36. Bc7 {[%clk 00:03:29]} {[%emt
00:00:03]} Kg6 {[%clk 00:00:11]} {[%emt 00:00:14]} 37. Be5 {[%clk 00:03:33]}
{[%emt 00:00:02]} Bf7 {[%clk 00:00:13]} {[%emt 00:00:04]} 38. f4 {[%clk
00:03:33]} {[%emt 00:00:04]} Rc5 {[%clk 00:00:07]} {[%emt 00:00:11]} 39. dxc5
{[%clk 00:03:32]} {[%emt 00:00:06]} Bd5 {[%clk 00:00:10]} {[%emt 00:00:02]} 40.
Rxg7# {[%emt 00:00:03]} 1-0

[Event "Championnat de France Universitaire 2022"]
[Site "Limoges, France"]
[Date "2022.02.06"]
[Round "8.2"]
[White "Bouslimi, Nabil"]
[Black "Profili, Emilio"]
[Result "0-1"]
[TimeControl "15'+5''"]
[WhiteElo "2052"]
[BlackElo "2097"]

1. d4 {[%clk 00:15:09]} Nf6 {[%clk 00:15:09]} {[%emt 00:00:01]} 2. c4 {[%clk
00:15:12]} {[%emt 00:00:03]} c5 {[%clk 00:15:08]} {[%emt 00:00:07]} 3. d5
{[%clk 00:15:12]} {[%emt 00:00:04]} b5 {[%clk 00:15:11]} {[%emt 00:00:01]} 4.
cxb5 {[%clk 00:15:11]} {[%emt 00:00:06]} a6 {[%clk 00:15:16]} {[%emt 00:00:02]}
5. b6 {[%clk 00:14:53]} {[%emt 00:00:22]} d6 {[%clk 00:15:16]} {[%emt
00:00:04]} 6. Nc3 {[%clk 00:14:53]} {[%emt 00:00:04]} Qxb6 {[%clk 00:15:18]}
{[%emt 00:00:03]} 7. g3 {[%clk 00:14:51]} {[%emt 00:00:08]} g6 {[%clk
00:15:20]} {[%emt 00:00:05]} 8. Bg2 {[%clk 00:14:55]} Bg7 {[%clk 00:15:24]} 9.
Nf3 {[%clk 00:14:58]} {[%emt 00:00:02]} O-O {[%clk 00:15:25]} {[%emt 00:00:04]}
10. O-O {[%clk 00:14:59]} {[%emt 00:00:03]} Nbd7 {[%clk 00:15:15]} {[%emt
00:00:15]} 11. Qc2 {[%clk 00:14:07]} {[%emt 00:00:58]} Rb8 {[%clk 00:14:49]}
{[%emt 00:00:30]} 12. e4 {[%clk 00:13:02]} {[%emt 00:01:10]} a5 {[%clk
00:12:11]} {[%emt 00:02:43]} 13. Rb1 {[%clk 00:11:57]} {[%emt 00:01:10]} Ba6
{[%clk 00:11:40]} {[%emt 00:00:36]} 14. Rd1 {[%clk 00:11:29]} {[%emt 00:00:33]}
Rfc8 {[%clk 00:11:16]} {[%emt 00:00:29]} 15. h3 {[%clk 00:11:07]} {[%emt
00:00:26]} Qc7 {[%clk 00:08:39]} {[%emt 00:02:42]} 16. Bf4 {[%clk 00:10:08]}
{[%emt 00:01:04]} c4 {[%clk 00:07:56]} {[%emt 00:00:48]} 17. Nd4 {[%clk
00:09:27]} {[%emt 00:00:46]} Nc5 {[%clk 00:07:54]} {[%emt 00:00:06]} 18. Nc6
{[%clk 00:09:24]} {[%emt 00:00:08]} Rb7 {[%clk 00:07:46]} {[%emt 00:00:13]} 19.
b3 {[%clk 00:07:12]} {[%emt 00:02:18]} cxb3 {[%clk 00:06:43]} {[%emt 00:01:07]}
20. axb3 {[%clk 00:07:13]} {[%emt 00:00:04]} Nh5 {[%clk 00:06:06]} {[%emt
00:00:42]} 21. Na4 {[%clk 00:06:25]} {[%emt 00:00:54]} Nxf4 {[%clk 00:05:49]}
{[%emt 00:00:22]} 22. gxf4 {[%clk 00:06:24]} {[%emt 00:00:05]} Bb5 {[%clk
00:02:22]} {[%emt 00:03:32]} 23. Nxc5 {[%clk 00:06:15]} {[%emt 00:00:14]} dxc5
{[%clk 00:02:25]} {[%emt 00:00:02]} 24. Qxc5 {[%clk 00:05:58]} {[%emt
00:00:22]} Bxc6 {[%clk 00:02:20]} {[%emt 00:00:10]} 25. dxc6 {[%clk 00:05:52]}
{[%emt 00:00:11]} Rb4 {[%clk 00:01:39]} {[%emt 00:00:46]} 26. Rd7 {[%clk
00:05:06]} {[%emt 00:00:50]} Qxf4 {[%clk 00:01:20]} {[%emt 00:00:25]} 27. Qxe7
{[%clk 00:03:43]} {[%emt 00:01:28]} Be5 {[%clk 00:01:04]} {[%emt 00:00:21]} 28.
Rd8+ {[%clk 00:02:36]} {[%emt 00:01:12]} Rxd8 {[%clk 00:01:05]} {[%emt
00:00:04]} 29. Qxd8+ {[%clk 00:02:40]} {[%emt 00:00:01]} Kg7 {[%clk 00:01:10]}
30. Qxa5 {[%clk 00:02:30]} {[%emt 00:00:16]} Rd4 {[%clk 00:01:13]} 31. Qe1
{[%clk 00:01:28]} {[%emt 00:01:07]} Rd2 {[%clk 00:00:57]} {[%emt 00:00:21]} 32.
Qe3 {[%clk 00:00:14]} {[%emt 00:01:19]} Qh2+ {[%clk 00:01:00]} 33. Kf1 {[%clk
00:00:17]} {[%emt 00:00:03]} Rc2 {[%clk 00:01:04]} 34. Qb6 {[%clk 00:00:07]}
{[%emt 00:00:15]} Qf4 {[%clk 00:01:00]} {[%emt 00:00:09]} 35. Qe3 {[%clk
00:00:11]} {[%emt 00:00:02]} Qf6 {[%clk 00:01:00]} {[%emt 00:00:05]} 36. b4
{[%clk 00:00:11]} {[%emt 00:00:05]} Bd4 {[%clk 00:01:04]} {[%emt 00:00:01]} 37.
Qg3 {[%clk 00:00:07]} {[%emt 00:00:09]} Rxf2+ {[%clk 00:01:05]} {[%emt
00:00:03]} 38. Ke1 {[%clk 00:00:12]} Bc3+ {[%clk 00:01:04]} {[%emt 00:00:07]}
39. Kd1 {[%clk 00:00:14]} {[%emt 00:00:03]} Qd4+ {[%clk 00:01:07]} {[%emt
00:00:01]} 0-1